Workbook

Sheet ◆操作シート
A2: 要介護認定データ_自動集計分析ソフト（都道府県用）［操作シート］
B5: ※ 以下のＳＴＥＰ１～ＳＴＥＰ３のボタンを順番に押すと、要介護認定データの集計結果をシートに出力します。
B6: ※ 使用前に、認定ソフトから出力した要介護認定データ（csvファイル）をご準備ください。
C9: 読み込んだデータの対象地域・期間における
C10: 直近時点の要支援・要介護認定者数の合計
G11: 人
B15: ［ＳＴＥＰ１］
B21: ［ＳＴＥＰ２］
B27: ［ＳＴＥＰ３］

Sheet 要介護認定データ
A1: 1 | B1: 2 | C1: 3 | D1: 4 | E1: 5 | F1: 6 | G1: 7 | H1: 8 | I1: 9 | J1: 10 | K1: 11 | L1: 12 | M1: 13 | N1: 14 | O1: 15 | P1: 16 | Q1: 17 | R1: 18 | S1: 19 | T1: 20 | U1: 21 | V1: 22 | W1: 23 | X1: 24 | Y1: 25 | Z1: 26 | AA1: 27 | AB1: 28 | AC1: 29 | AD1: 30 | AE1: 31 | AF1: 32 | AG1: 33 | AH1: 34 | AI1: 35 | AJ1: 36 | AK1: 37 | AL1: 38 | AM1: 39 | AN1: 40 | AO1: 41 | AP1: 42 | AQ1: 43 | AR1: 44 | AS1: 45 | AT1: 46 | AU1: 47 | AV1: 48 | AW1: 49 | AX1: 50 | AY1: 51 | AZ1: 52 | BA1: 53 | BB1: 54 | BC1: 55 | BD1: 56 | BE1: 57 | BF1: 58 | BG1: 59 | BH1: 60 | BI1: 61 | BJ1: 62 | BK1: 63 | BL1: 64 | BM1: 65 | BN1: 66 | BO1: 67 | BP1: 68 | BQ1: 69 | BR1: 70 | BS1: 71 | BT1: 72 | BU1: 73 | BV1: 74 | BW1: 75 | BX1: 76 | BY1: 77 | BZ1: 78 | CA1: 79 | CB1: 80 | CC1: 81 | CD1: 82 | CE1: 83 | CF1: 84 | CG1: 85 | CH1: 86 | CI1: 87 | CJ1: 88 | CK1: 89 | CL1: 90 | CM1: 91 | CN1: 92 | CO1: 93 | CP1: 94 | CQ1: 95 | CR1: 96 | CS1: 97 | CT1: 98 | CU1: 99 | CV1: 100 | CW1: 101 | CX1: 102 | CY1: 103 | CZ1: 104 | DA1: 105 | DB1: 106 | DC1: 107 | DD1: 108 | DE1: 109 | DF1: 110 | DG1: 111 | DH1: 112 | DI1: 113 | DJ1: 114 | DK1: 115 | DL1: 116 | DM1: 117 | DN1: 118 | DO1: 119 | DP1: 120 | DQ1: 121 | DR1: 122 | DS1: 123 | DT1: 124 | DU1: 125 | DV1: 126 | DW1: 127 | DX1: 128 | DY1: 129 | DZ1: 130 | EA1: 131 | EB1: 132 | EC1: 133 | ED1: 134 | EE1: 135 | EF1: 136 | EG1: 137 | EH1: 138 | EI1: 139 | EJ1: 140 | EK1: 141 | EL1: 142 | EM1: 143 | EN1: 144 | EO1: 145 | EP1: 146 | EQ1: 147 | ER1: 148 | ES1: 149 | ET1: 150 | EU1: 151 | EV1: 152 | EW1: 153 | EX1: 154 | EY1: 155 | EZ1: 156 | FA1: 157 | FB1: 158 | FC1: 159 | FD1: 160 | FE1: 161 | FF1: 162 | FG1: 163 | FH1: 164 | FI1: 165 | FJ1: 166 | FK1: 167 | FL1: 168 | FM1: 169 | FN1: 170 | FO1: 171 | FP1: 172 | FQ1: 173 | FR1: 174 | FS1: 175 | FT1: 176 | FU1: 177 | FV1: 178 | FW1: 179 | FX1: 180 | FY1: 181 | FZ1: 182 | GA1: 183 | GB1: 184 | GC1: 185 | GD1: 186 | GE1: 187 | GF1: 188 | GG1: 189 | GH1: 190 | GI1: 191 | GJ1: 192 | GK1: 193 | GL1: 194 | GM1: 195 | GN1: 196 | GO1: 197 | GP1: 198 | GQ1: 199 | GR1: 200 | GS1: 201 | GT1: 202 | GU1: 203 | GV1: 204 | GW1: 205 | GX1: 206 | GY1: 207 | GZ1: 208 | HA1: 209 | HB1: 210 | HC1: 211 | HD1: 212 | HE1: 213 | HF1: 214 | HG1: 215 | HH1: 216 | HI1: 217 | HJ1: 218 | HK1: 219 | HL1: 220 | HM1: 221 | HN1: 222 | HO1: 223 | HP1: 224 | HQ1: 225 | HR1: 226 | HS1: 227 | HT1: 228 | HU1: 229 | HV1: 230 | HW1: 231 | HX1: 232 | HY1: 233 | HZ1: 234 | IA1: 235 | IB1: 236 | IC1: 237 | ID1: 238 | IE1: 239 | IF1: 240 | IG1: 241 | IH1: 242 | II1: 243 | IJ1: 244 | IK1: 245 | IL1: 246 | IM1: 247 | IN1: 248 | IO1: 249 | IP1: 250 | IQ1: 251 | IR1: 252 | IS1: 253 | IT1: 254 | IU1: 255
A2: 保険者番号 | B2: 被保険者番号 | C2: 認定申請日 | D2: 枝番 | E2: 申請種別コード | F2: 取下区分コード | G2: 被保険者資格区分コード | H2: 申請代行区分コード | I2: 年齢 | J2: 生年月日 | K2: 性別コード | L2: 被保険者カナ氏名 | M2: 被保険者漢字氏名 | N2: 郵便番号 | O2: 住所 | P2: 電話番号 | Q2: 施設名称 | R2: 所在地 | S2: 前回申請種別コード | T2: 前回認定審査会結果 | U2: 前回有効期間開始 | V2: 前回有効期間終了 | W2: 主治医医療機関コード | X2: 主治医コード | Y2: コメント等 | Z2: 意見書依頼日 | AA2: 意見書入手日 | AB2: 意見書｢短期記憶｣ | AC2: 意見書｢認知能力｣ | AD2: 意見書｢伝達能力｣ | AE2: 意見書｢食事行為｣ | AF2: 意見書｢認知症高齢者の 日常生活自立度｣ | AG2: 調査依頼日 | AH2: 調査実施日 | AI2: 委託区分 | AJ2: 指定居宅介護支援事業者等コード | AK2: 認定調査員コード | AL2: 認定調査員資格コード | AM2: 一次判定日 | AN2: 一次判定結果 | AO2: 一次判定結果(基準時間の積み足し後) | AP2: 要介護認定等基準時間(基準時間の積み足し以外) | AQ2: 要介護認定等基準時間(食事) | AR2: 要介護認定等基準時間(排泄) | AS2: 要介護認定等基準時間(移動) | AT2: 要介護認定等基準時間 (清潔保持) | AU2: 要介護認定等基準時間 (間接ケア) | AV2: 要介護認定等基準時間 (問題行動) | AW2: 要介護認定等基準時間(機能訓練) | AX2: 要介護認定等基準時間(医療関連) | AY2: 要介護認定等基準時間(積み足し時間) | AZ2: 中間評価項目得点 第１群 | BA2: 中間評価項目得点 第２群 | BB2: 中間評価項目得点 第３群 | BC2: 中間評価項目得点 第４群 | BD2: 中間評価項目得点 第５群 | BE2: 一次判定警告コード | BF2: 参考指標(認知症高齢者の日常生活自立度の蓋然性評価％) | BG2: 廃用の程度から推定される給付区分 | BH2: 状態の安定性(認知機能・廃用の程度の評価結果) | BI2: 審査会資料作成日 | BJ2: 審査会予定日 | BK2: 合議体コード | BL2: 審査会資料番号 | BM2: 二次判定日 | BN2: 二次判定結果 | BO2: 認定有効期間(開始) | BP2: 認定有効期間(終了) | BQ2: 特定疾病コード | BR2: 要介護１の場合の状態像 | BS2: 審査会意見 | BT2: 審査会意見有無 | BU2: 現在のサービス区分コード | BV2: 現在の状況 | BW2: 訪問介護(ホームヘルプサービス) | BX2: 訪問入浴介護 | BY2: 訪問看護 | BZ2: 訪問リハビリテーション | CA2: 居宅療養管理指導 | CB2: 通所介護(デイサービス) | CC2: 通所リハビリテーション | CD2: 短期入所生活介護(ショートステイ) | CE2: 短期入所療養介護 | CF2: 特定施設入居者生活介護 | CG2: 福祉用具貸与 | CH2: 特定福祉用具販売 | CI2: 住宅改修(介護給付) | CJ2: 夜間対応型訪問介護 | CK2: 認知症対応型通所介護 | CL2: 小規模多機能型居宅介護 | CM2: 認知症対応型共同生活介護(グループホーム) | CN2: 地域密着型特定施設入居者生活介護 | CO2: 地域密着型介護老人福祉施設入所者生活介護 | CP2: 介護予防訪問介護(ホームヘルプサービス) | CQ2: 介護予防訪問入浴介護 | CR2: 介護予防訪問看護 | CS2: 介護予防訪問リハビリテーション | CT2: 介護予防居宅療養管理指導 | CU2: 介護予防通所介護(デイサービス) | CV2: 介護予防通所リハビリテーション | CW2: 介護予防短期入所生活介護(ショートステイ) | CX2: 介護予防短期入所療養介護 | CY2: 介護予防特定施設入居者生活介護 | CZ2: 介護予防福祉用具貸与 | DA2: 特定介護予防福祉用具販売 | DB2: 住宅改修(予防給付) | DC2: 介護予防認知症対応型通所介護 | DD2: 介護予防小規模多機能型居宅介護 | DE2: 介護予防認知症対応型共同生活介護(グループホーム) | DF2: 麻痺(左-上肢) | DG2: 麻痺(右-上肢) | DH2: 麻痺(左-下肢) | DI2: 麻痺(右-下肢) | DJ2: 麻痺(その他) | DK2: 拘縮(肩関節) | DL2: 拘縮(股関節) | DM2: 拘縮(膝関節) | DN2: 拘縮(その他) | DO2: 寝返り | DP2: 起き上がり | DQ2: 座位保持 | DR2: 両足での立位 | DS2: 歩行 | DT2: 立ち上がり | DU2: 片足での立位 | DV2: 洗身 | DW2: つめ切り | DX2: 視力 | DY2: 聴力 | DZ2: 移乗 | EA2: 移動 | EB2: えん下 | EC2: 食事摂取 | ED2: 排尿 | EE2: 排便 | EF2: 口腔清潔 | EG2: 洗顔 | EH2: 整髪 | EI2: 上衣の着脱 | EJ2: ズボン等の着脱 | EK2: 外出頻度 | EL2: 意志の伝達 | EM2: 毎日の日課を理解 | EN2: 生年月日をいう | EO2: 短期記憶 | EP2: 自分の名前をいう | EQ2: 今の季節を理解 | ER2: 場所の理解 | ES2: 徘徊 | ET2: 外出して戻れない | EU2: 被害的 | EV2: 作話 | EW2: 感情が不安定 | EX2: 昼夜逆転 | EY2: 同じ話をする | EZ2: 大声を出す | FA2: 介護に抵抗 | FB2: 落ち着きなし | FC2: 一人で出たがる | FD2: 収集癖 | FE2: 物や衣類を壊す | FF2: ひどい物忘れ | FG2: 独り言・独り笑い | FH2: 自分勝手に行動する | FI2: 話がまとまらない | FJ2: 薬の内服 | FK2: 金銭の管理 | FL2: 日常の意志決定 | FM2: 集団への不適応 | FN2: 買い物 | FO2: 簡単な調理 | FP2: 点滴の管理 | FQ2: 中心静脈栄養 | FR2: 透析 | FS2: ストーマの処置 | FT2: 酸素療法 | FU2: レスピレーター | FV2: 気管切開の処置 | FW2: 疼痛の看護 | FX2: 経管栄養 | FY2: モニター測定 | FZ2: じょくそうの処置 | GA2: カテーテル | GB2: 障害高齢者自立度 | GC2: 認知症高齢者自立度 | GD2: 調査依頼予定日 | GE2: 調査実施予定日 | GF2: 意見書依頼予定日 | GG2: 意見書入手予定日 | GH2: 一次判定実施予定日 | GI2: 審査会資料作成予定日 | GJ2: 二次判定実施予定日 | GK2: ステージナンバー | GL2: 出力区分 | GM2: データ状態 | GN2: 送信日時 | GO2: 送信No | GP2: データ作成区分 | GQ2: 作成日時 | GR2: 作成ユーザー | GS2: 作成画面ID | GT2: 作成バージョン | GU2: 更新日時 | GV2: 更新ユーザー | GW2: 更新画面ID | GX2: 更新バージョン | GY2: 申請区分（申請時）コード | GZ2: 定期巡回・随時対応型訪問介護看護 | HA2: 看護小規模多機能型居宅介護 | HB2: 性別 | HC2: 年齢 | HD2: 二次判定結果 | HE2: 認知症高齢者自立度 | HF2: 中間評価項目得点 第1群 | HG2: 中間評価項目得点 第2群 | HH2: 中間評価項目得点 第3群 | HI2: 中間評価項目得点 第4群 | HJ2: 中間評価項目得点 第5群 | HK2: 居所 | HL2: サービス利用の組み合わせ | HM2: 訪問看護の利用 | HN2: サービス利用回数（訪問系） | HO2: サービス利用回数（通所系） | HP2: サービス利用回数（短期系） | HQ2: 特別な医療 | HR2: 点滴の管理 | HS2: 中心静脈栄養 | HT2: 透析 | HU2: ストーマの処置 | HV2: 酸素療法 | HW2: レスピレーター | HX2: 気管切開の処置 | HY2: 疼痛の看護 | HZ2: 経管栄養 | IA2: モニター測定 | IB2: じょくそうの処置 | IC2: カテーテル | ID2: 認知症自立度×要介護度 | IE2: 特別な医療×要介護度 | IF2: 点滴の管理×要介護度 | IG2: 中心静脈栄養×要介護度 | IH2: 透析×要介護度 | II2: ストーマの処置×要介護度 | IJ2: 酸素療法×要介護度 | IK2: レスピレーター×要介護度 | IL2: 気管切開の処置×要介護度 | IM2: 疼痛の看護×要介護度 | IN2: 経管栄養×要介護度 | IO2: モニター測定×要介護度 | IP2: じょくそうの処置×要介護度 | IQ2: カテーテル×要介護度 | IR2: サービス利用回数（短期系） | IS2: 有効期間補正係数 | IT2: 地域番号 | IU2: 集計対象

Sheet 設定 (hidden)
A1: 設問番号 | B1: 選択肢数1 | C1: 選択肢数2 | D1: 入力開始行 | E1: 集計対象列1 | F1: 集計対象列2 | G1: 高さを変更する行1 | H1: 高さを変更する行2
A2: 1 | B2: 2 | D2: 5 | E2: 210 | G2: 9 | H2: 10
A3: 2 | B3: 9 | D3: 13 | E3: 211 | G3: 24 | H3: 25
A4: 3 | B4: 7 | D4: 28 | E4: 212 | G4: 37 | H4: 38
A5: 4 | B5: 8 | D5: 41 | E5: 213 | G5: 51 | H5: 52
A6: 5 | B6: 10 | D6: 55 | E6: 214 | G6: 67 | H6: 68
A7: 6 | B7: 10 | D7: 71 | E7: 215 | G7: 83 | H7: 84
A8: 7 | B8: 10 | D8: 87 | E8: 216 | G8: 99 | H8: 100
A9: 8 | B9: 10 | D9: 103 | E9: 217 | G9: 115 | H9: 116
A10: 9 | B10: 10 | D10: 119 | E10: 218 | G10: 131 | H10: 132
A11: 10 | B11: 10 | D11: 135 | E11: 219 | G11: 147 | H11: 148
A12: 11 | B12: 4 | D12: 151 | E12: 220 | G12: 157 | H12: 158
A13: 12 | B13: 2 | D13: 161 | E13: 221 | G13: 165 | H13: 166
A14: 13 | B14: 7 | D14: 169 | E14: 222 | G14: 178 | H14: 179
A15: 14 | B15: 6 | D15: 182 | E15: 223 | G15: 190 | H15: 191
A16: 15 | B16: 6 | D16: 194 | E16: 224 | G16: 202 | H16: 203
A17: 16 | B17: 2 | D17: 206 | E17: 225 | G17: 210 | H17: 211
A18: 17 | B18: 2 | D18: 214 | E18: 226 | G18: 218 | H18: 219
A19: 18 | B19: 2 | D19: 222 | E19: 227 | G19: 226 | H19: 227
A20: 19 | B20: 2 | D20: 230 | E20: 228 | G20: 234 | H20: 235
A21: 20 | B21: 2 | D21: 238 | E21: 229 | G21: 242 | H21: 243
A22: 21 | B22: 2 | D22: 246 | E22: 230 | G22: 250 | H22: 251
A23: 22 | B23: 2 | D23: 254 | E23: 231 | G23: 258 | H23: 259
A24: 23 | B24: 2 | D24: 262 | E24: 232 | G24: 266 | H24: 267
A25: 24 | B25: 2 | D25: 270 | E25: 233 | G25: 274 | H25: 275
A26: 25 | B26: 2 | D26: 278 | E26: 234 | G26: 282 | H26: 283
A27: 26 | B27: 2 | D27: 286 | E27: 235 | G27: 290 | H27: 291
A28: 27 | B28: 2 | D28: 294 | E28: 236 | G28: 298 | H28: 299
A29: 28 | B29: 2 | D29: 302 | E29: 237 | G29: 306 | H29: 307
A30: 29 | B30: 9 | C30: 10 | D30: 4 | E30: 238 | F30: 219
A31: 30 | B31: 9 | C31: 10 | D31: 18 | E31: 211 | F31: 219
A32: 31 | B32: 9 | C32: 7 | D32: 32 | E32: 238 | F32: 220
A33: 32 | B33: 9 | C33: 2 | D33: 46 | E33: 238 | F33: 221
A34: 33 | B34: 9 | C34: 2 | D34: 60 | E34: 238 | F34: 252
A35: 34 | B35: 3 | C35: 10 | D35: 74 | E35: 239 | F35: 219
A36: 35 | B36: 3 | C36: 10 | D36: 82 | E36: 240 | F36: 219
A37: 36 | B37: 3 | C37: 10 | D37: 90 | E37: 241 | F37: 219
A38: 37 | B38: 3 | C38: 10 | D38: 98 | E38: 242 | F38: 219
A39: 38 | B39: 3 | C39: 10 | D39: 106 | E39: 243 | F39: 219
A40: 39 | B40: 3 | C40: 10 | D40: 114 | E40: 244 | F40: 219
A41: 40 | B41: 3 | C41: 10 | D41: 122 | E41: 245 | F41: 219
A42: 41 | B42: 3 | C42: 10 | D42: 130 | E42: 246 | F42: 219
A43: 42 | B43: 3 | C43: 10 | D43: 138 | E43: 247 | F43: 219
A44: 43 | B44: 3 | C44: 10 | D44: 146 | E44: 248 | F44: 219
A45: 44 | B45: 3 | C45: 10 | D45: 154 | E45: 249 | F45: 219
A46: 45 | B46: 3 | C46: 10 | D46: 162 | E46: 250 | F46: 219
A47: 46 | B47: 3 | C47: 10 | D47: 170 | E47: 251 | F47: 219
A48: 47 | B48: 7 | C48: 8 | D48: 178 | E48: 212 | F48: 213
A49: 48 | B49: 9 | C49: 8 | D49: 189 | E49: 211 | F49: 213

Sheet 単純集計ひな形 (hidden)
B4: 性別
C5: 全体
B6: 男性 | C6: 0.5
B7: 女性 | C7: 0.5
B8: 合計 | C8: =SUM(C6:C7) -> 1
B12: 年齢
C13: 全体
B14: 65歳未満 | C14: 0.1111111111
B15: 65～69歳 | C15: 0.1111111111
B16: 70～74歳 | C16: 0.1111111111
B17: 75～79歳 | C17: 0.1111111111
B18: 80～84歳 | C18: 0.1111111111
B19: 85～89歳 | C19: 0.1111111111
B20: 90～94歳 | C20: 0.1111111111
B21: 95～99歳 | C21: 0.1111111111
B22: 100歳以上 | C22: 0.1111111111
B23: 合計 | C23: =SUM(C14:C22) -> 1
B27: 要介護度
C28: 全体
B29: 要支援1 | C29: =1/7 -> 0.1428571429
B30: 要支援2 | C30: =1/7 -> 0.1428571429
B31: 要介護1 | C31: 0.1428571429
B32: 要介護2 | C32: 0.1428571429
B33: 要介護3 | C33: 0.1428571429
B34: 要介護4 | C34: 0.1428571429
B35: 要介護5 | C35: 0.1428571429
B36: 合計 | C36: =SUM(C29:C35) -> 1
B40: 認知症高齢者の日常生活自立度
C41: 全体
B42: 自立 | C42: 0.125
B43: Ⅰ | C43: 0.125
B44: Ⅱa | C44: 0.125
B45: Ⅱb | C45: 0.125
B46: Ⅲa | C46: 0.125
B47: Ⅲb | C47: 0.125
B48: Ⅳ | C48: 0.125
B49: M | C49: 0.125
B50: 合計 | C50: =SUM(C42:C49) -> 1
B54: 中間評価項目得点（第1群）
C55: 全体
B56: 10点未満 | C56: 0.1
B57: 10点以上 | C57: 0.1
B58: 20点以上 | C58: 0.1
B59: 30点以上 | C59: 0.1
B60: 40点以上 | C60: 0.1
B61: 50点以上 | C61: 0.1
B62: 60点以上 | C62: 0.1
B63: 70点以上 | C63: 0.1
B64: 80点以上 | C64: 0.1
B65: 90点以上 | C65: 0.1
B66: 合計 | C66: =SUM(C56:C65) -> 1
B70: 中間評価項目得点（第2群）
C71: 全体
B72: 10点未満 | C72: 0.1
B73: 10点以上 | C73: 0.1
B74: 20点以上 | C74: 0.1
B75: 30点以上 | C75: 0.1
B76: 40点以上 | C76: 0.1
B77: 50点以上 | C77: 0.1
B78: 60点以上 | C78: 0.1
B79: 70点以上 | C79: 0.1
B80: 80点以上 | C80: 0.1
B81: 90点以上 | C81: 0.1
B82: 合計 | C82: =SUM(C72:C81) -> 1
B86: 中間評価項目得点（第3群）
C87: 全体
B88: 10点未満 | C88: 0.1
B89: 10点以上 | C89: 0.1
B90: 20点以上 | C90: 0.1
B91: 30点以上 | C91: 0.1
B92: 40点以上 | C92: 0.1
B93: 50点以上 | C93: 0.1
B94: 60点以上 | C94: 0.1
B95: 70点以上 | C95: 0.1
B96: 80点以上 | C96: 0.1
B97: 90点以上 | C97: 0.1
B98: 合計 | C98: =SUM(C88:C97) -> 1
B102: 中間評価項目得点（第4群）
C103: 全体
B104: 10点未満 | C104: 0.1
B105: 10点以上 | C105: 0.1
B106: 20点以上 | C106: 0.1
B107: 30点以上 | C107: 0.1
B108: 40点以上 | C108: 0.1
B109: 50点以上 | C109: 0.1
B110: 60点以上 | C110: 0.1
B111: 70点以上 | C111: 0.1
B112: 80点以上 | C112: 0.1
B113: 90点以上 | C113: 0.1
B114: 合計 | C114: =SUM(C104:C113) -> 1
B118: 中間評価項目得点（第5群）
C119: 全体
B120: 10点未満 | C120: 0.1
B121: 10点以上 | C121: 0.1
B122: 20点以上 | C122: 0.1
B123: 30点以上 | C123: 0.1
B124: 40点以上 | C124: 0.1
B125: 50点以上 | C125: 0.1
B126: 60点以上 | C126: 0.1
B127: 70点以上 | C127: 0.1
B128: 80点以上 | C128: 0.1
B129: 90点以上 | C129: 0.1
B130: 合計 | C130: =SUM(C120:C129) -> 1
B134: 居所
C135: 全体
B136: 居宅 | C136: 0.1
B137: 特養 | C137: 0.1
B138: 老健 | C138: 0.1
B139: 介護療養 | C139: 0.1
B140: GH | C140: 0.1
B141: 特定施設 | C141: 0.1
B142: 医療療養 | C142: 0.1
B143: 医療機関 | C143: 0.1
B144: その他施設 | C144: 0.1
B145: 介護医療院 | C145: 0.1
B146: 合計 | C146: =SUM(C136:C145) -> 1
B150: サービス利用の組み合わせ（居宅・その他施設のみ）
C151: 全体
B152: 訪問系のみ | C152: 0.25
B153: 訪問系を含む組み合わせ | C153: 0.25
B154: 通所系・短期系のみ | C154: 0.25
B155: それ以外 | C155: 0.25
B156: 合計 | C156: =SUM(C152:C155) -> 1
B160: 訪問看護の利用（看多機含む、居宅・その他施設のみ）
C161: 全体
B162: なし | C162: 0.5
B163: あり | C163: 0.5
B164: 合計 | C164: =SUM(C162:C163) -> 1
B168: 訪問系サービス利用の回数（定巡除く、居宅・その他施設のみ）
C169: 全体
B170: 0回 | C170: 0.1428571429
B171: 1～4回 | C171: 0.1428571429
B172: 5～14回 | C172: 0.1428571429
B173: 15～24回 | C173: 0.1428571429
B174: 25～31回 | C174: 0.1428571429
B175: 32～49回 | C175: 0.1428571429
B176: 50回以上 | C176: 0.1428571429
B177: 合計 | C177: =SUM(C170:C176) -> 1
B181: 通所系サービス利用の回数（居宅・その他施設のみ）
C182: 全体
B183: 0回 | C183: 0.1666666667
B184: 1～4回 | C184: 0.1666666667
B185: 5～9回 | C185: 0.1666666667
B186: 10～14回 | C186: 0.1666666667
B187: 15～24回 | C187: 0.1666666667
B188: 25回以上 | C188: 0.1666666667
B189: 合計 | C189: =SUM(C183:C188) -> 1
B193: 短期系サービス利用の回数（居宅・その他施設のみ）
C194: 全体
B195: 0回 | C195: 0.1666666667
B196: 1～4回 | C196: 0.1666666667
B197: 5～9回 | C197: 0.1666666667
B198: 10～14回 | C198: 0.1666666667
B199: 15～24回 | C199: 0.1666666667
B200: 25回以上 | C200: 0.1666666667
B201: 合計 | C201: =SUM(C195:C200) -> 1
B205: 特別な医療（1つでも該当）
C206: 全体
B207: なし | C207: 0.5
B208: あり | C208: 0.5
B209: 合計 | C209: =SUM(C207:C208) -> 1
B213: 点滴の管理
C214: 全体
B215: なし | C215: 0.5
B216: あり | C216: 0.5
B217: 合計 | C217: =SUM(C215:C216) -> 1
B221: 中心静脈栄養
C222: 全体
B223: なし | C223: 0.5
B224: あり | C224: 0.5
B225: 合計 | C225: =SUM(C223:C224) -> 1
B229: 透析
C230: 全体
B231: なし | C231: 0.5
B232: あり | C232: 0.5
B233: 合計 | C233: =SUM(C231:C232) -> 1
B237: ストーマの処置
C238: 全体
B239: なし | C239: 0.5
B240: あり | C240: 0.5
B241: 合計 | C241: =SUM(C239:C240) -> 1
B245: 酸素療法
C246: 全体
B247: なし | C247: 0.5
B248: あり | C248: 0.5
B249: 合計 | C249: =SUM(C247:C248) -> 1
B253: レスピレーター
C254: 全体
B255: なし | C255: 0.5
B256: あり | C256: 0.5
B257: 合計 | C257: =SUM(C255:C256) -> 1
B261: 気管切開の処置
C262: 全体
B263: なし | C263: 0.5
B264: あり | C264: 0.5
B265: 合計 | C265: =SUM(C263:C264) -> 1
B269: 疼痛の看護
C270: 全体
B271: なし | C271: 0.5
B272: あり | C272: 0.5
... 21 more rows

Sheet クロス集計ひな形 (hidden)
B3: 全体
B4: 状態像別の居所 | D4: 居宅 | E4: 特養 | F4: 老健 | G4: 介護療養 | H4: GH | I4: 特定施設 | J4: 医療療養 | K4: 医療機関 | L4: その他施設 | M4: 介護医療院 | N4: 合計
B5: 認知症自立度Ⅰ以下 | C5: 要支援1～2 | D5: 0.01111111111 | E5: 0.01111111111 | F5: 0.01111111111 | G5: 0.01111111111 | H5: 0.01111111111 | I5: 0.01111111111 | J5: 0.01111111111 | K5: 0.01111111111 | L5: 0.01111111111 | M5: 0.01111111111 | N5: =SUM(D5:M5) -> 0.1111111111
C6: 要介護1～2 | D6: 0.01111111111 | E6: 0.01111111111 | F6: 0.01111111111 | G6: 0.01111111111 | H6: 0.01111111111 | I6: 0.01111111111 | J6: 0.01111111111 | K6: 0.01111111111 | L6: 0.01111111111 | M6: 0.01111111111 | N6: =SUM(D6:M6) -> 0.1111111111
C7: 要介護3～5 | D7: 0.01111111111 | E7: 0.01111111111 | F7: 0.01111111111 | G7: 0.01111111111 | H7: 0.01111111111 | I7: 0.01111111111 | J7: 0.01111111111 | K7: 0.01111111111 | L7: 0.01111111111 | M7: 0.01111111111 | N7: 0.1111111111
B8: 認知症自立度Ⅱ | C8: 要支援1～2 | D8: 0.01111111111 | E8: 0.01111111111 | F8: 0.01111111111 | G8: 0.01111111111 | H8: 0.01111111111 | I8: 0.01111111111 | J8: 0.01111111111 | K8: 0.01111111111 | L8: 0.01111111111 | M8: 0.01111111111 | N8: 0.1111111111
C9: 要介護1～2 | D9: 0.01111111111 | E9: 0.01111111111 | F9: 0.01111111111 | G9: 0.01111111111 | H9: 0.01111111111 | I9: 0.01111111111 | J9: 0.01111111111 | K9: 0.01111111111 | L9: 0.01111111111 | M9: 0.01111111111 | N9: 0.1111111111
C10: 要介護3～5 | D10: 0.01111111111 | E10: 0.01111111111 | F10: 0.01111111111 | G10: 0.01111111111 | H10: 0.01111111111 | I10: 0.01111111111 | J10: 0.01111111111 | K10: 0.01111111111 | L10: 0.01111111111 | M10: 0.01111111111 | N10: 0.1111111111
B11: 認知症自立度Ⅲ以上 | C11: 要支援1～2 | D11: 0.01111111111 | E11: 0.01111111111 | F11: 0.01111111111 | G11: 0.01111111111 | H11: 0.01111111111 | I11: 0.01111111111 | J11: 0.01111111111 | K11: 0.01111111111 | L11: 0.01111111111 | M11: 0.01111111111 | N11: 0.1111111111
C12: 要介護1～2 | D12: 0.01111111111 | E12: 0.01111111111 | F12: 0.01111111111 | G12: 0.01111111111 | H12: 0.01111111111 | I12: 0.01111111111 | J12: 0.01111111111 | K12: 0.01111111111 | L12: 0.01111111111 | M12: 0.01111111111 | N12: 0.1111111111
C13: 要介護3～5 | D13: 0.01111111111 | E13: 0.01111111111 | F13: 0.01111111111 | G13: 0.01111111111 | H13: 0.01111111111 | I13: 0.01111111111 | J13: 0.01111111111 | K13: 0.01111111111 | L13: 0.01111111111 | M13: 0.01111111111 | N13: 0.1111111111
B14: 合計 | D14: =SUM(D5:D13) -> 0.1 | E14: =SUM(E5:E13) -> 0.1 | F14: 0.1 | G14: 0.1 | H14: 0.1 | I14: 0.1 | J14: 0.1 | K14: 0.1 | L14: 0.1 | M14: =SUM(M5:M13) -> 0.1 | N14: =SUM(D5:M13) -> 1
B17: 全体
B18: 年齢別の居所 | D18: 居宅 | E18: 特養 | F18: 老健 | G18: 介護療養 | H18: GH | I18: 特定施設 | J18: 医療療養 | K18: 医療機関 | L18: その他施設 | M18: 介護医療院 | N18: 合計
B19: 65歳未満 | D19: 0.01111111111 | E19: 0.01111111111 | F19: 0.01111111111 | G19: 0.01111111111 | H19: 0.01111111111 | I19: 0.01111111111 | J19: 0.01111111111 | K19: 0.01111111111 | L19: 0.01111111111 | M19: 0.01111111111 | N19: =SUM(D19:M19) -> 0.1111111111
B20: 65～69歳 | D20: 0.01111111111 | E20: 0.01111111111 | F20: 0.01111111111 | G20: 0.01111111111 | H20: 0.01111111111 | I20: 0.01111111111 | J20: 0.01111111111 | K20: 0.01111111111 | L20: 0.01111111111 | M20: 0.01111111111 | N20: =SUM(D20:M20) -> 0.1111111111
B21: 70～74歳 | D21: 0.01111111111 | E21: 0.01111111111 | F21: 0.01111111111 | G21: 0.01111111111 | H21: 0.01111111111 | I21: 0.01111111111 | J21: 0.01111111111 | K21: 0.01111111111 | L21: 0.01111111111 | M21: 0.01111111111 | N21: 0.1111111111
B22: 75～79歳 | D22: 0.01111111111 | E22: 0.01111111111 | F22: 0.01111111111 | G22: 0.01111111111 | H22: 0.01111111111 | I22: 0.01111111111 | J22: 0.01111111111 | K22: 0.01111111111 | L22: 0.01111111111 | M22: 0.01111111111 | N22: 0.1111111111
B23: 80～84歳 | D23: 0.01111111111 | E23: 0.01111111111 | F23: 0.01111111111 | G23: 0.01111111111 | H23: 0.01111111111 | I23: 0.01111111111 | J23: 0.01111111111 | K23: 0.01111111111 | L23: 0.01111111111 | M23: 0.01111111111 | N23: 0.1111111111
B24: 85～89歳 | D24: 0.01111111111 | E24: 0.01111111111 | F24: 0.01111111111 | G24: 0.01111111111 | H24: 0.01111111111 | I24: 0.01111111111 | J24: 0.01111111111 | K24: 0.01111111111 | L24: 0.01111111111 | M24: 0.01111111111 | N24: 0.1111111111
B25: 90～94歳 | D25: 0.01111111111 | E25: 0.01111111111 | F25: 0.01111111111 | G25: 0.01111111111 | H25: 0.01111111111 | I25: 0.01111111111 | J25: 0.01111111111 | K25: 0.01111111111 | L25: 0.01111111111 | M25: 0.01111111111 | N25: 0.1111111111
B26: 95～99歳 | D26: 0.01111111111 | E26: 0.01111111111 | F26: 0.01111111111 | G26: 0.01111111111 | H26: 0.01111111111 | I26: 0.01111111111 | J26: 0.01111111111 | K26: 0.01111111111 | L26: 0.01111111111 | M26: 0.01111111111 | N26: 0.1111111111
B27: 100歳以上 | D27: 0.01111111111 | E27: 0.01111111111 | F27: 0.01111111111 | G27: 0.01111111111 | H27: 0.01111111111 | I27: 0.01111111111 | J27: 0.01111111111 | K27: 0.01111111111 | L27: 0.01111111111 | M27: 0.01111111111 | N27: 0.1111111111
B28: 合計 | D28: =SUM(D19:D27) -> 0.1 | E28: =SUM(E19:E27) -> 0.1 | F28: 0.1 | G28: 0.1 | H28: 0.1 | I28: 0.1 | J28: 0.1 | K28: 0.1 | L28: 0.1 | M28: =SUM(M19:M27) -> 0.1 | N28: =SUM(D19:M27) -> 1
B31: 全体
B32: 状態像別のサービス利用（居宅・その他施設のみ） | D32: 訪問系のみ | E32: 訪問系を含む組み合わせ | F32: 通所系・短期系のみ | G32: それ以外 | H32: （参考）定巡を含む | I32: （参考）小多機を含む | J32: （参考）看多機を含む | K32: 合計
B33: 認知症自立度Ⅰ以下 | C33: 要支援1～2 | D33: =1/36 -> 0.02777777778 | E33: =1/36 -> 0.02777777778 | F33: 0.02777777778 | G33: 0.02777777778 | H33: =1/100 -> 0.01 | I33: =1/100 -> 0.01 | J33: 0.01 | K33: =SUM(D33:G33) -> 0.1111111111
C34: 要介護1～2 | D34: =1/36 -> 0.02777777778 | E34: 0.02777777778 | F34: 0.02777777778 | G34: 0.02777777778 | H34: =1/100 -> 0.01 | I34: 0.01 | J34: 0.01 | K34: =SUM(D34:G34) -> 0.1111111111
C35: 要介護3～5 | D35: 0.02777777778 | E35: 0.02777777778 | F35: 0.02777777778 | G35: 0.02777777778 | H35: 0.01 | I35: 0.01 | J35: 0.01 | K35: 0.1111111111
B36: 認知症自立度Ⅱ | C36: 要支援1～2 | D36: 0.02777777778 | E36: 0.02777777778 | F36: 0.02777777778 | G36: 0.02777777778 | H36: 0.01 | I36: 0.01 | J36: 0.01 | K36: 0.1111111111
C37: 要介護1～2 | D37: 0.02777777778 | E37: 0.02777777778 | F37: 0.02777777778 | G37: 0.02777777778 | H37: 0.01 | I37: 0.01 | J37: 0.01 | K37: 0.1111111111
C38: 要介護3～5 | D38: 0.02777777778 | E38: 0.02777777778 | F38: 0.02777777778 | G38: 0.02777777778 | H38: 0.01 | I38: 0.01 | J38: 0.01 | K38: 0.1111111111
B39: 認知症自立度Ⅲ以上 | C39: 要支援1～2 | D39: 0.02777777778 | E39: 0.02777777778 | F39: 0.02777777778 | G39: 0.02777777778 | H39: 0.01 | I39: 0.01 | J39: 0.01 | K39: 0.1111111111
C40: 要介護1～2 | D40: 0.02777777778 | E40: 0.02777777778 | F40: 0.02777777778 | G40: 0.02777777778 | H40: 0.01 | I40: 0.01 | J40: 0.01 | K40: 0.1111111111
C41: 要介護3～5 | D41: 0.02777777778 | E41: 0.02777777778 | F41: 0.02777777778 | G41: 0.02777777778 | H41: 0.01 | I41: 0.01 | J41: 0.01 | K41: 0.1111111111
B42: 合計 | D42: =SUM(D33:D41) -> 0.25 | E42: 0.25 | F42: 0.25 | G42: 0.25 | H42: 0.09 | I42: 0.09 | J42: 0.09 | K42: =SUM(D33:G41) -> 1
B45: 全体
B46: 状態像別の訪問看護の利用（看多機含む、居宅・その他施設のみ） | D46: なし | E46: あり | F46: 合計
B47: 認知症自立度Ⅰ以下 | C47: 要支援1～2 | D47: =1/18 -> 0.05555555556 | E47: =1/18 -> 0.05555555556 | F47: =SUM(D47:E47) -> 0.1111111111
C48: 要介護1～2 | D48: =1/18 -> 0.05555555556 | E48: 0.05555555556 | F48: =SUM(D48:E48) -> 0.1111111111
C49: 要介護3～5 | D49: 0.05555555556 | E49: 0.05555555556 | F49: 0.1111111111
B50: 認知症自立度Ⅱ | C50: 要支援1～2 | D50: 0.05555555556 | E50: 0.05555555556 | F50: 0.1111111111
C51: 要介護1～2 | D51: 0.05555555556 | E51: 0.05555555556 | F51: 0.1111111111
C52: 要介護3～5 | D52: 0.05555555556 | E52: 0.05555555556 | F52: 0.1111111111
B53: 認知症自立度Ⅲ以上 | C53: 要支援1～2 | D53: 0.05555555556 | E53: 0.05555555556 | F53: 0.1111111111
C54: 要介護1～2 | D54: 0.05555555556 | E54: 0.05555555556 | F54: 0.1111111111
C55: 要介護3～5 | D55: 0.05555555556 | E55: 0.05555555556 | F55: 0.1111111111
B56: 合計 | D56: =SUM(D47:D55) -> 0.5 | E56: =SUM(E47:E55) -> 0.5 | F56: =SUM(D47:E55) -> 1
B59: 全体
B60: 状態像別のショートステイ利用実態（短期入所療養介護含む、居宅・その他施設のみ） | D60: 14日以下 | E60: 15日以上 | F60: 合計
B61: 認知症自立度Ⅰ以下 | C61: 要支援1～2 | D61: =1/18 -> 0.05555555556 | E61: =1/18 -> 0.05555555556 | F61: =SUM(D61:E61) -> 0.1111111111
C62: 要介護1～2 | D62: =1/18 -> 0.05555555556 | E62: 0.05555555556 | F62: 0.1111111111
C63: 要介護3～5 | D63: 0.05555555556 | E63: 0.05555555556 | F63: 0.1111111111
B64: 認知症自立度Ⅱ | C64: 要支援1～2 | D64: 0.05555555556 | E64: 0.05555555556 | F64: 0.1111111111
C65: 要介護1～2 | D65: 0.05555555556 | E65: 0.05555555556 | F65: 0.1111111111
C66: 要介護3～5 | D66: 0.05555555556 | E66: 0.05555555556 | F66: 0.1111111111
B67: 認知症自立度Ⅲ以上 | C67: 要支援1～2 | D67: 0.05555555556 | E67: 0.05555555556 | F67: 0.1111111111
C68: 要介護1～2 | D68: 0.05555555556 | E68: 0.05555555556 | F68: 0.1111111111
C69: 要介護3～5 | D69: 0.05555555556 | E69: 0.05555555556 | F69: 0.1111111111
B70: 合計 | D70: =SUM(D61:D69) -> 0.5 | E70: =SUM(E61:E69) -> 0.5 | F70: =SUM(D61:E69) -> 1
B73: 全体
B74: 特別な医療の種類別の居所（特別な医療が1つでも該当） | D74: 居宅 | E74: 特養 | F74: 老健 | G74: 介護療養 | H74: GH | I74: 特定施設 | J74: 医療療養 | K74: 医療機関 | L74: その他施設 | M74: 介護医療院 | N74: 合計
B75: 要支援1～2 | D75: =1/30 -> 0.03333333333 | E75: =1/30 -> 0.03333333333 | F75: 0.03333333333 | G75: 0.03333333333 | H75: 0.03333333333 | I75: 0.03333333333 | J75: 0.03333333333 | K75: 0.03333333333 | L75: 0.03333333333 | M75: 0.03333333333 | N75: =SUM(D75:M75) -> 0.3333333333
B76: 要介護1～2 | D76: =1/30 -> 0.03333333333 | E76: 0.03333333333 | F76: 0.03333333333 | G76: 0.03333333333 | H76: 0.03333333333 | I76: 0.03333333333 | J76: 0.03333333333 | K76: 0.03333333333 | L76: 0.03333333333 | M76: 0.03333333333 | N76: =SUM(D76:M76) -> 0.3333333333
B77: 要介護3～5 | D77: 0.03333333333 | E77: 0.03333333333 | F77: 0.03333333333 | G77: 0.03333333333 | H77: 0.03333333333 | I77: 0.03333333333 | J77: 0.03333333333 | K77: 0.03333333333 | L77: 0.03333333333 | M77: 0.03333333333 | N77: 0.3333333333
B78: 合計 | D78: =SUM(D75:D77) -> 0.1 | E78: =SUM(E75:E77) -> 0.1 | F78: 0.1 | G78: 0.1 | H78: 0.1 | I78: 0.1 | J78: 0.1 | K78: 0.1 | L78: 0.1 | M78: =SUM(M75:M77) -> 0.1 | N78: =SUM(N75:N77) -> 1
B81: 全体
B82: 特別な医療の種類別の居所（点滴の管理） | D82: 居宅 | E82: 特養 | F82: 老健 | G82: 介護療養 | H82: GH | I82: 特定施設 | J82: 医療療養 | K82: 医療機関 | L82: その他施設 | M82: 介護医療院 | N82: 合計
B83: 要支援1～2 | D83: =1/30 -> 0.03333333333 | E83: =1/30 -> 0.03333333333 | F83: 0.03333333333 | G83: 0.03333333333 | H83: 0.03333333333 | I83: 0.03333333333 | J83: 0.03333333333 | K83: 0.03333333333 | L83: 0.03333333333 | M83: 0.03333333333 | N83: =SUM(D83:M83) -> 0.3333333333
B84: 要介護1～2 | D84: =1/30 -> 0.03333333333 | E84: 0.03333333333 | F84: 0.03333333333 | G84: 0.03333333333 | H84: 0.03333333333 | I84: 0.03333333333 | J84: 0.03333333333 | K84: 0.03333333333 | L84: 0.03333333333 | M84: 0.03333333333 | N84: =SUM(D84:M84) -> 0.3333333333
B85: 要介護3～5 | D85: 0.03333333333 | E85: 0.03333333333 | F85: 0.03333333333 | G85: 0.03333333333 | H85: 0.03333333333 | I85: 0.03333333333 | J85: 0.03333333333 | K85: 0.03333333333 | L85: 0.03333333333 | M85: 0.03333333333 | N85: 0.3333333333
B86: 合計 | D86: =SUM(D83:D85) -> 0.1 | E86: =SUM(E83:E85) -> 0.1 | F86: 0.1 | G86: 0.1 | H86: 0.1 | I86: 0.1 | J86: 0.1 | K86: 0.1 | L86: 0.1 | M86: 0.1 | N86: =SUM(N83:N85) -> 1
B89: 全体
B90: 特別な医療の種類別の居所（中心静脈栄養） | D90: 居宅 | E90: 特養 | F90: 老健 | G90: 介護療養 | H90: GH | I90: 特定施設 | J90: 医療療養 | K90: 医療機関 | L90: その他施設 | M90: 介護医療院 | N90: 合計
B91: 要支援1～2 | D91: =1/30 -> 0.03333333333 | E91: =1/30 -> 0.03333333333 | F91: 0.03333333333 | G91: 0.03333333333 | H91: 0.03333333333 | I91: 0.03333333333 | J91: 0.03333333333 | K91: 0.03333333333 | L91: 0.03333333333 | M91: 0.03333333333 | N91: =SUM(D91:M91) -> 0.3333333333
B92: 要介護1～2 | D92: =1/30 -> 0.03333333333 | E92: 0.03333333333 | F92: 0.03333333333 | G92: 0.03333333333 | H92: 0.03333333333 | I92: 0.03333333333 | J92: 0.03333333333 | K92: 0.03333333333 | L92: 0.03333333333 | M92: 0.03333333333 | N92: =SUM(D92:M92) -> 0.3333333333
B93: 要介護3～5 | D93: 0.03333333333 | E93: 0.03333333333 | F93: 0.03333333333 | G93: 0.03333333333 | H93: 0.03333333333 | I93: 0.03333333333 | J93: 0.03333333333 | K93: 0.03333333333 | L93: 0.03333333333 | M93: 0.03333333333 | N93: 0.3333333333
B94: 合計 | D94: =SUM(D91:D93) -> 0.1 | E94: =SUM(E91:E93) -> 0.1 | F94: 0.1 | G94: 0.1 | H94: 0.1 | I94: 0.1 | J94: 0.1 | K94: 0.1 | L94: 0.1 | M94: 0.1 | N94: =SUM(N91:N93) -> 1
B97: 全体
B98: 特別な医療の種類別の居所（透析） | D98: 居宅 | E98: 特養 | F98: 老健 | G98: 介護療養 | H98: GH | I98: 特定施設 | J98: 医療療養 | K98: 医療機関 | L98: その他施設 | M98: 介護医療院 | N98: 合計
B99: 要支援1～2 | D99: =1/30 -> 0.03333333333 | E99: =1/30 -> 0.03333333333 | F99: 0.03333333333 | G99: 0.03333333333 | H99: 0.03333333333 | I99: 0.03333333333 | J99: 0.03333333333 | K99: 0.03333333333 | L99: 0.03333333333 | M99: 0.03333333333 | N99: =SUM(D99:M99) -> 0.3333333333
B100: 要介護1～2 | D100: =1/30 -> 0.03333333333 | E100: 0.03333333333 | F100: 0.03333333333 | G100: 0.03333333333 | H100: 0.03333333333 | I100: 0.03333333333 | J100: 0.03333333333 | K100: 0.03333333333 | L100: 0.03333333333 | M100: 0.03333333333 | N100: =SUM(D100:M100) -> 0.3333333333
B101: 要介護3～5 | D101: 0.03333333333 | E101: 0.03333333333 | F101: 0.03333333333 | G101: 0.03333333333 | H101: 0.03333333333 | I101: 0.03333333333 | J101: 0.03333333333 | K101: 0.03333333333 | L101: 0.03333333333 | M101: 0.03333333333 | N101: 0.3333333333
B102: 合計 | D102: =SUM(D99:D101) -> 0.1 | E102: =SUM(E99:E101) -> 0.1 | F102: 0.1 | G102: 0.1 | H102: 0.1 | I102: 0.1 | J102: 0.1 | K102: 0.1 | L102: 0.1 | M102: 0.1 | N102: =SUM(N99:N101) -> 1
B105: 全体
B106: 特別な医療の種類別の居所（ストーマの処置） | D106: 居宅 | E106: 特養 | F106: 老健 | G106: 介護療養 | H106: GH | I106: 特定施設 | J106: 医療療養 | K106: 医療機関 | L106: その他施設 | M106: 介護医療院 | N106: 合計
B107: 要支援1～2 | D107: =1/30 -> 0.03333333333 | E107: =1/30 -> 0.03333333333 | F107: 0.03333333333 | G107: 0.03333333333 | H107: 0.03333333333 | I107: 0.03333333333 | J107: 0.03333333333 | K107: 0.03333333333 | L107: 0.03333333333 | M107: 0.03333333333 | N107: =SUM(D107:M107) -> 0.3333333333
B108: 要介護1～2 | D108: =1/30 -> 0.03333333333 | E108: 0.03333333333 | F108: 0.03333333333 | G108: 0.03333333333 | H108: 0.03333333333 | I108: 0.03333333333 | J108: 0.03333333333 | K108: 0.03333333333 | L108: 0.03333333333 | M108: 0.03333333333 | N108: =SUM(D108:M108) -> 0.3333333333
B109: 要介護3～5 | D109: 0.03333333333 | E109: 0.03333333333 | F109: 0.03333333333 | G109: 0.03333333333 | H109: 0.03333333333 | I109: 0.03333333333 | J109: 0.03333333333 | K109: 0.03333333333 | L109: 0.03333333333 | M109: 0.03333333333 | N109: 0.3333333333
B110: 合計 | D110: =SUM(D107:D109) -> 0.1 | E110: =SUM(E107:E109) -> 0.1 | F110: 0.1 | G110: 0.1 | H110: 0.1 | I110: 0.1 | J110: 0.1 | K110: 0.1 | L110: 0.1 | M110: 0.1 | N110: =SUM(N107:N109) -> 1
B113: 全体
B114: 特別な医療の種類別の居所（酸素療法） | D114: 居宅 | E114: 特養 | F114: 老健 | G114: 介護療養 | H114: GH | I114: 特定施設 | J114: 医療療養 | K114: 医療機関 | L114: その他施設 | M114: 介護医療院 | N114: 合計
B115: 要支援1～2 | D115: =1/30 -> 0.03333333333 | E115: =1/30 -> 0.03333333333 | F115: 0.03333333333 | G115: 0.03333333333 | H115: 0.03333333333 | I115: 0.03333333333 | J115: 0.03333333333 | K115: 0.03333333333 | L115: 0.03333333333 | M115: 0.03333333333 | N115: =SUM(D115:M115) -> 0.3333333333
B116: 要介護1～2 | D116: =1/30 -> 0.03333333333 | E116: 0.03333333333 | F116: 0.03333333333 | G116: 0.03333333333 | H116: 0.03333333333 | I116: 0.03333333333 | J116: 0.03333333333 | K116: 0.03333333333 | L116: 0.03333333333 | M116: 0.03333333333 | N116: =SUM(D116:M116) -> 0.3333333333
B117: 要介護3～5 | D117: 0.03333333333 | E117: 0.03333333333 | F117: 0.03333333333 | G117: 0.03333333333 | H117: 0.03333333333 | I117: 0.03333333333 | J117: 0.03333333333 | K117: 0.03333333333 | L117: 0.03333333333 | M117: 0.03333333333 | N117: 0.3333333333
B118: 合計 | D118: =SUM(D115:D117) -> 0.1 | E118: =SUM(E115:E117) -> 0.1 | F118: 0.1 | G118: 0.1 | H118: 0.1 | I118: 0.1 | J118: 0.1 | K118: 0.1 | L118: 0.1 | M118: 0.1 | N118: =SUM(N115:N117) -> 1
B121: 全体
B122: 特別な医療の種類別の居所（レスピレーター） | D122: 居宅 | E122: 特養 | F122: 老健 | G122: 介護療養 | H122: GH | I122: 特定施設 | J122: 医療療養 | K122: 医療機関 | L122: その他施設 | M122: 介護医療院 | N122: 合計
B123: 要支援1～2 | D123: =1/30 -> 0.03333333333 | E123: =1/30 -> 0.03333333333 | F123: 0.03333333333 | G123: 0.03333333333 | H123: 0.03333333333 | I123: 0.03333333333 | J123: 0.03333333333 | K123: 0.03333333333 | L123: 0.03333333333 | M123: 0.03333333333 | N123: =SUM(D123:M123) -> 0.3333333333
B124: 要介護1～2 | D124: =1/30 -> 0.03333333333 | E124: 0.03333333333 | F124: 0.03333333333 | G124: 0.03333333333 | H124: 0.03333333333 | I124: 0.03333333333 | J124: 0.03333333333 | K124: 0.03333333333 | L124: 0.03333333333 | M124: 0.03333333333 | N124: =SUM(D124:M124) -> 0.3333333333
B125: 要介護3～5 | D125: 0.03333333333 | E125: 0.03333333333 | F125: 0.03333333333 | G125: 0.03333333333 | H125: 0.03333333333 | I125: 0.03333333333 | J125: 0.03333333333 | K125: 0.03333333333 | L125: 0.03333333333 | M125: 0.03333333333 | N125: 0.3333333333
B126: 合計 | D126: =SUM(D123:D125) -> 0.1 | E126: =SUM(E123:E125) -> 0.1 | F126: 0.1 | G126: 0.1 | H126: 0.1 | I126: 0.1 | J126: 0.1 | K126: 0.1 | L126: 0.1 | M126: 0.1 | N126: =SUM(N123:N125) -> 1
B129: 全体
B130: 特別な医療の種類別の居所（気管切開の処置） | D130: 居宅 | E130: 特養 | F130: 老健 | G130: 介護療養 | H130: GH | I130: 特定施設 | J130: 医療療養 | K130: 医療機関 | L130: その他施設 | M130: 介護医療院 | N130: 合計
B131: 要支援1～2 | D131: =1/30 -> 0.03333333333 | E131: =1/30 -> 0.03333333333 | F131: 0.03333333333 | G131: 0.03333333333 | H131: 0.03333333333 | I131: 0.03333333333 | J131: 0.03333333333 | K131: 0.03333333333 | L131: 0.03333333333 | M131: 0.03333333333 | N131: =SUM(D131:M131) -> 0.3333333333
B132: 要介護1～2 | D132: =1/30 -> 0.03333333333 | E132: 0.03333333333 | F132: 0.03333333333 | G132: 0.03333333333 | H132: 0.03333333333 | I132: 0.03333333333 | J132: 0.03333333333 | K132: 0.03333333333 | L132: 0.03333333333 | M132: 0.03333333333 | N132: =SUM(D132:M132) -> 0.3333333333
B133: 要介護3～5 | D133: 0.03333333333 | E133: 0.03333333333 | F133: 0.03333333333 | G133: 0.03333333333 | H133: 0.03333333333 | I133: 0.03333333333 | J133: 0.03333333333 | K133: 0.03333333333 | L133: 0.03333333333 | M133: 0.03333333333 | N133: 0.3333333333
B134: 合計 | D134: =SUM(D131:D133) -> 0.1 | E134: =SUM(E131:E133) -> 0.1 | F134: 0.1 | G134: 0.1 | H134: 0.1 | I134: 0.1 | J134: 0.1 | K134: 0.1 | L134: 0.1 | M134: 0.1 | N134: =SUM(N131:N133) -> 1
B137: 全体
B138: 特別な医療の種類別の居所（疼痛の看護） | D138: 居宅 | E138: 特養 | F138: 老健 | G138: 介護療養 | H138: GH | I138: 特定施設 | J138: 医療療養 | K138: 医療機関 | L138: その他施設 | M138: 介護医療院 | N138: 合計
B139: 要支援1～2 | D139: =1/30 -> 0.03333333333 | E139: =1/30 -> 0.03333333333 | F139: 0.03333333333 | G139: 0.03333333333 | H139: 0.03333333333 | I139: 0.03333333333 | J139: 0.03333333333 | K139: 0.03333333333 | L139: 0.03333333333 | M139: 0.03333333333 | N139: =SUM(D139:M139) -> 0.3333333333
B140: 要介護1～2 | D140: =1/30 -> 0.03333333333 | E140: 0.03333333333 | F140: 0.03333333333 | G140: 0.03333333333 | H140: 0.03333333333 | I140: 0.03333333333 | J140: 0.03333333333 | K140: 0.03333333333 | L140: 0.03333333333 | M140: 0.03333333333 | N140: =SUM(D140:M140) -> 0.3333333333
B141: 要介護3～5 | D141: 0.03333333333 | E141: 0.03333333333 | F141: 0.03333333333 | G141: 0.03333333333 | H141: 0.03333333333 | I141: 0.03333333333 | J141: 0.03333333333 | K141: 0.03333333333 | L141: 0.03333333333 | M141: 0.03333333333 | N141: 0.3333333333
B142: 合計 | D142: =SUM(D139:D141) -> 0.1 | E142: =SUM(E139:E141) -> 0.1 | F142: 0.1 | G142: 0.1 | H142: 0.1 | I142: 0.1 | J142: 0.1 | K142: 0.1 | L142: 0.1 | M142: 0.1 | N142: =SUM(N139:N141) -> 1
B145: 全体
B146: 特別な医療の種類別の居所（経管栄養） | D146: 居宅 | E146: 特養 | F146: 老健 | G146: 介護療養 | H146: GH | I146: 特定施設 | J146: 医療療養 | K146: 医療機関 | L146: その他施設 | M146: 介護医療院 | N146: 合計
B147: 要支援1～2 | D147: =1/30 -> 0.03333333333 | E147: =1/30 -> 0.03333333333 | F147: 0.03333333333 | G147: 0.03333333333 | H147: 0.03333333333 | I147: 0.03333333333 | J147: 0.03333333333 | K147: 0.03333333333 | L147: 0.03333333333 | M147: 0.03333333333 | N147: =SUM(D147:M147) -> 0.3333333333
B148: 要介護1～2 | D148: =1/30 -> 0.03333333333 | E148: 0.03333333333 | F148: 0.03333333333 | G148: 0.03333333333 | H148: 0.03333333333 | I148: 0.03333333333 | J148: 0.03333333333 | K148: 0.03333333333 | L148: 0.03333333333 | M148: 0.03333333333 | N148: =SUM(D148:M148) -> 0.3333333333
B149: 要介護3～5 | D149: 0.03333333333 | E149: 0.03333333333 | F149: 0.03333333333 | G149: 0.03333333333 | H149: 0.03333333333 | I149: 0.03333333333 | J149: 0.03333333333 | K149: 0.03333333333 | L149: 0.03333333333 | M149: 0.03333333333 | N149: 0.3333333333
B150: 合計 | D150: =SUM(D147:D149) -> 0.1 | E150: =SUM(E147:E149) -> 0.1 | F150: 0.1 | G150: 0.1 | H150: 0.1 | I150: 0.1 | J150: 0.1 | K150: 0.1 | L150: 0.1 | M150: 0.1 | N150: =SUM(N147:N149) -> 1
B153: 全体
B154: 特別な医療の種類別の居所（モニター測定） | D154: 居宅 | E154: 特養 | F154: 老健 | G154: 介護療養 | H154: GH | I154: 特定施設 | J154: 医療療養 | K154: 医療機関 | L154: その他施設 | M154: 介護医療院 | N154: 合計
B155: 要支援1～2 | D155: =1/30 -> 0.03333333333 | E155: =1/30 -> 0.03333333333 | F155: 0.03333333333 | G155: 0.03333333333 | H155: 0.03333333333 | I155: 0.03333333333 | J155: 0.03333333333 | K155: 0.03333333333 | L155: 0.03333333333 | M155: 0.03333333333 | N155: =SUM(D155:M155) -> 0.3333333333
B156: 要介護1～2 | D156: =1/30 -> 0.03333333333 | E156: 0.03333333333 | F156: 0.03333333333 | G156: 0.03333333333 | H156: 0.03333333333 | I156: 0.03333333333 | J156: 0.03333333333 | K156: 0.03333333333 | L156: 0.03333333333 | M156: 0.03333333333 | N156: =SUM(D156:M156) -> 0.3333333333
B157: 要介護3～5 | D157: 0.03333333333 | E157: 0.03333333333 | F157: 0.03333333333 | G157: 0.03333333333 | H157: 0.03333333333 | I157: 0.03333333333 | J157: 0.03333333333 | K157: 0.03333333333 | L157: 0.03333333333 | M157: 0.03333333333 | N157: 0.3333333333
B158: 合計 | D158: =SUM(D155:D157) -> 0.1 | E158: =SUM(E155:E157) -> 0.1 | F158: 0.1 | G158: 0.1 | H158: 0.1 | I158: 0.1 | J158: 0.1 | K158: 0.1 | L158: 0.1 | M158: 0.1 | N158: =SUM(N155:N157) -> 1
B161: 全体
B162: 特別な医療の種類別の居所（じょくそうの処置） | D162: 居宅 | E162: 特養 | F162: 老健 | G162: 介護療養 | H162: GH | I162: 特定施設 | J162: 医療療養 | K162: 医療機関 | L162: その他施設 | M162: 介護医療院 | N162: 合計
B163: 要支援1～2 | D163: =1/30 -> 0.03333333333 | E163: =1/30 -> 0.03333333333 | F163: 0.03333333333 | G163: 0.03333333333 | H163: 0.03333333333 | I163: 0.03333333333 | J163: 0.03333333333 | K163: 0.03333333333 | L163: 0.03333333333 | M163: 0.03333333333 | N163: =SUM(D163:M163) -> 0.3333333333
B164: 要介護1～2 | D164: =1/30 -> 0.03333333333 | E164: 0.03333333333 | F164: 0.03333333333 | G164: 0.03333333333 | H164: 0.03333333333 | I164: 0.03333333333 | J164: 0.03333333333 | K164: 0.03333333333 | L164: 0.03333333333 | M164: 0.03333333333 | N164: =SUM(D164:M164) -> 0.3333333333
B165: 要介護3～5 | D165: 0.03333333333 | E165: 0.03333333333 | F165: 0.03333333333 | G165: 0.03333333333 | H165: 0.03333333333 | I165: 0.03333333333 | J165: 0.03333333333 | K165: 0.03333333333 | L165: 0.03333333333 | M165: 0.03333333333 | N165: 0.3333333333
B166: 合計 | D166: =SUM(D163:D165) -> 0.1 | E166: =SUM(E163:E165) -> 0.1 | F166: 0.1 | G166: 0.1 | H166: 0.1 | I166: 0.1 | J166: 0.1 | K166: 0.1 | L166: 0.1 | M166: 0.1 | N166: =SUM(N163:N165) -> 1
B169: 全体
B170: 特別な医療の種類別の居所（カテーテル） | D170: 居宅 | E170: 特養 | F170: 老健 | G170: 介護療養 | H170: GH | I170: 特定施設 | J170: 医療療養 | K170: 医療機関 | L170: その他施設 | M170: 介護医療院 | N170: 合計
B171: 要支援1～2 | D171: =1/30 -> 0.03333333333 | E171: =1/30 -> 0.03333333333 | F171: 0.03333333333 | G171: 0.03333333333 | H171: 0.03333333333 | I171: 0.03333333333 | J171: 0.03333333333 | K171: 0.03333333333 | L171: 0.03333333333 | M171: 0.03333333333 | N171: =SUM(D171:M171) -> 0.3333333333
B172: 要介護1～2 | D172: =1/30 -> 0.03333333333 | E172: 0.03333333333 | F172: 0.03333333333 | G172: 0.03333333333 | H172: 0.03333333333 | I172: 0.03333333333 | J172: 0.03333333333 | K172: 0.03333333333 | L172: 0.03333333333 | M172: 0.03333333333 | N172: =SUM(D172:M172) -> 0.3333333333
B173: 要介護3～5 | D173: 0.03333333333 | E173: 0.03333333333 | F173: 0.03333333333 | G173: 0.03333333333 | H173: 0.03333333333 | I173: 0.03333333333 | J173: 0.03333333333 | K173: 0.03333333333 | L173: 0.03333333333 | M173: 0.03333333333 | N173: 0.3333333333
B174: 合計 | D174: =SUM(D171:D173) -> 0.1 | E174: =SUM(E171:E173) -> 0.1 | F174: 0.1 | G174: 0.1 | H174: 0.1 | I174: 0.1 | J174: 0.1 | K174: 0.1 | L174: 0.1 | M174: 0.1 | N174: =SUM(N171:N173) -> 1
B177: 全体
B178: 要介護度別の認知症高齢者の日常生活自立度 | D178: 自立 | E178: Ⅰ | F178: Ⅱa | G178: Ⅱb | H178: Ⅲa | I178: Ⅲb | J178: Ⅳ | K178: M | L178: 合計
B179: 要支援1 | D179: 0.125 | E179: 0.125 | F179: 0.125 | G179: 0.125 | H179: 0.125 | I179: 0.125 | J179: 0.125 | K179: 0.125 | L179: =SUM(D179:K179) -> 1
B180: 要支援2 | D180: 0.125 | E180: 0.125 | F180: 0.125 | G180: 0.125 | H180: 0.125 | I180: 0.125 | J180: 0.125 | K180: 0.125 | L180: =SUM(D180:K180) -> 1
B181: 要介護1 | D181: 0.125 | E181: 0.125 | F181: 0.125 | G181: 0.125 | H181: 0.125 | I181: 0.125 | J181: 0.125 | K181: 0.125 | L181: 1
B182: 要介護2 | D182: 0.125 | E182: 0.125 | F182: 0.125 | G182: 0.125 | H182: 0.125 | I182: 0.125 | J182: 0.125 | K182: 0.125 | L182: 1
B183: 要介護3 | D183: 0.125 | E183: 0.125 | F183: 0.125 | G183: 0.125 | H183: 0.125 | I183: 0.125 | J183: 0.125 | K183: 0.125 | L183: 1
B184: 要介護4 | D184: 0.125 | E184: 0.125 | F184: 0.125 | G184: 0.125 | H184: 0.125 | I184: 0.125 | J184: 0.125 | K184: 0.125 | L184: 1
B185: 要介護5 | D185: 0.125 | E185: 0.125 | F185: 0.125 | G185: 0.125 | H185: 0.125 | I185: 0.125 | J185: 0.125 | K185: 0.125 | L185: 1
B188: 全体
B189: 年齢別の認知症高齢者の日常生活自立度 | D189: 自立 | E189: Ⅰ | F189: Ⅱa | G189: Ⅱb | H189: Ⅲa | I189: Ⅲb | J189: Ⅳ | K189: M | L189: 合計
B190: 65歳未満 | D190: 0.125 | E190: 0.125 | F190: 0.125 | G190: 0.125 | H190: 0.125 | I190: 0.125 | J190: 0.125 | K190: 0.125 | L190: =SUM(D190:K190) -> 1
B191: 65～69歳 | D191: 0.125 | E191: 0.125 | F191: 0.125 | G191: 0.125 | H191: 0.125 | I191: 0.125 | J191: 0.125 | K191: 0.125 | L191: =SUM(D191:K191) -> 1
B192: 70～74歳 | D192: 0.125 | E192: 0.125 | F192: 0.125 | G192: 0.125 | H192: 0.125 | I192: 0.125 | J192: 0.125 | K192: 0.125 | L192: 1
B193: 75～79歳 | D193: 0.125 | E193: 0.125 | F193: 0.125 | G193: 0.125 | H193: 0.125 | I193: 0.125 | J193: 0.125 | K193: 0.125 | L193: 1
B194: 80～84歳 | D194: 0.125 | E194: 0.125 | F194: 0.125 | G194: 0.125 | H194: 0.125 | I194: 0.125 | J194: 0.125 | K194: 0.125 | L194: 1
B195: 85～89歳 | D195: 0.125 | E195: 0.125 | F195: 0.125 | G195: 0.125 | H195: 0.125 | I195: 0.125 | J195: 0.125 | K195: 0.125 | L195: 1
B196: 90～94歳 | D196: 0.125 | E196: 0.125 | F196: 0.125 | G196: 0.125 | H196: 0.125 | I196: 0.125 | J196: 0.125 | K196: 0.125 | L196: 1
B197: 95～99歳 | D197: 0.125 | E197: 0.125 | F197: 0.125 | G197: 0.125 | H197: 0.125 | I197: 0.125 | J197: 0.125 | K197: 0.125 | L197: 1
B198: 100歳以上 | D198: 0.125 | E198: 0.125 | F198: 0.125 | G198: 0.125 | H198: 0.125 | I198: 0.125 | J198: 0.125 | K198: 0.125 | L198: 1

Sheet 地域設定 (hidden)
A1: 読み込んだ要介護認定データには、 以下の保険者番号と市区町村が含まれています。 | C1: 市区町村を見て、地域番号を数字で割り振ってください（1から最大100まで）。集計対象としない市区町村は空欄のままで結構です（全体集計には含まれます）。 | E1: 地域番号に対応する地域名を入力してください。地域名が入力されていない地域については、集計結果に地域番号が表示されます。
G2: 地域番号 | H2: 1 | I2: 2 | J2: 3 | K2: 4 | L2: 5 | M2: 6 | N2: 7 | O2: 8 | P2: 9 | Q2: 10 | R2: 11 | S2: 12 | T2: 13 | U2: 14 | V2: 15 | W2: 16 | X2: 17 | Y2: 18 | Z2: 19 | AA2: 20 | AB2: 21 | AC2: 22 | AD2: 23 | AE2: 24 | AF2: 25 | AG2: 26 | AH2: 27 | AI2: 28 | AJ2: 29 | AK2: 30 | AL2: 31 | AM2: 32 | AN2: 33 | AO2: 34 | AP2: 35 | AQ2: 36 | AR2: 37 | AS2: 38 | AT2: 39 | AU2: 40 | AV2: 41 | AW2: 42 | AX2: 43 | AY2: 44 | AZ2: 45 | BA2: 46 | BB2: 47 | BC2: 48 | BD2: 49 | BE2: 50 | BF2: 51 | BG2: 52 | BH2: 53 | BI2: 54 | BJ2: 55 | BK2: 56 | BL2: 57 | BM2: 58 | BN2: 59 | BO2: 60 | BP2: 61 | BQ2: 62 | BR2: 63 | BS2: 64 | BT2: 65 | BU2: 66 | BV2: 67 | BW2: 68 | BX2: 69 | BY2: 70 | BZ2: 71 | CA2: 72 | CB2: 73 | CC2: 74 | CD2: 75 | CE2: 76 | CF2: 77 | CG2: 78 | CH2: 79 | CI2: 80 | CJ2: 81 | CK2: 82 | CL2: 83 | CM2: 84 | CN2: 85 | CO2: 86 | CP2: 87 | CQ2: 88 | CR2: 89 | CS2: 90 | CT2: 91 | CU2: 92 | CV2: 93 | CW2: 94 | CX2: 95 | CY2: 96 | CZ2: 97 | DA2: 98 | DB2: 99 | DC2: 100
G3: 地域名
G4: 要支援・要介護認定者数
G5: （対象データの直近時点）
A9: 保険者番号 | B9: 市区町村 | C9: 地域番号

Sheet 保険者番号 (hidden)
A1: 保険者番号 | B1: 市区町村名
A2: 11015 | B2: 札幌市（中央区）
A3: 11023 | B3: 札幌市（北区）
A4: 11031 | B4: 札幌市（東区）
A5: 11049 | B5: 札幌市（白石区）
A6: 11056 | B6: 札幌市（豊平区）
A7: 11064 | B7: 札幌市（南区）
A8: 11072 | B8: 札幌市（西区）
A9: 11080 | B9: 札幌市（厚別区）
A10: 11098 | B10: 札幌市（手稲区）
A11: 11106 | B11: 札幌市（清田区）
A12: 12021 | B12: 函館市
A13: 12039 | B13: 小樽市
A14: 12047 | B14: 旭川市
A15: 12054 | B15: 室蘭市
A16: 12062 | B16: 釧路市
A17: 12070 | B17: 帯広市
A18: 12088 | B18: 北見市
A19: 12096 | B19: 夕張市
A20: 12104 | B20: 岩見沢市
A21: 12112 | B21: 網走市
A22: 12120 | B22: 留萌市
A23: 12138 | B23: 苫小牧市
A24: 12146 | B24: 稚内市
A25: 12153 | B25: 美唄市
A26: 12161 | B26: 芦別市
A27: 12179 | B27: 江別市
A28: 12187 | B28: 赤平市
A29: 12195 | B29: 紋別市
A30: 12203 | B30: 士別市
A31: 12211 | B31: 名寄市
A32: 12229 | B32: 三笠市
A33: 12237 | B33: 根室市
A34: 12245 | B34: 千歳市
A35: 12252 | B35: 滝川市
A36: 12260 | B36: 砂川市
A37: 12286 | B37: 深川市
A38: 12294 | B38: 富良野市
A39: 12302 | B39: 登別市
A40: 12310 | B40: 恵庭市
A41: 12336 | B41: 伊達市
A42: 12344 | B42: 北広島市
A43: 12351 | B43: 石狩市
A44: 12369 | B44: 北斗市
A45: 13037 | B45: 当別町
A46: 13045 | B46: 新篠津村
A47: 13318 | B47: 松前町
A48: 13326 | B48: 福島町
A49: 13334 | B49: 知内町
A50: 13342 | B50: 木古内町
A51: 13375 | B51: 七飯町
A52: 13433 | B52: 鹿部町
A53: 13458 | B53: 森町
A54: 13466 | B54: 八雲町
A55: 13474 | B55: 長万部町
A56: 13615 | B56: 江差町
A57: 13623 | B57: 上ノ国町
A58: 13631 | B58: 厚沢部町
A59: 13649 | B59: 乙部町
A60: 13672 | B60: 奥尻町
A61: 13706 | B61: 今金町
A62: 13714 | B62: せたな町
A63: 13920 | B63: 寿都町
A64: 14027 | B64: 岩内町
A65: 14084 | B65: 余市町
A66: 14233 | B66: 南幌町
A67: 14274 | B67: 由仁町
A68: 14282 | B68: 長沼町
A69: 14290 | B69: 栗山町
A70: 14308 | B70: 月形町
A71: 14332 | B71: 妹背牛町
A72: 14340 | B72: 秩父別町
A73: 14373 | B73: 北竜町
A74: 14381 | B74: 沼田町
A75: 14399 | B75: 幌加内町
A76: 14522 | B76: 鷹栖町
A77: 14548 | B77: 当麻町
A78: 14555 | B78: 比布町
A79: 14563 | B79: 愛別町
A80: 14571 | B80: 上川町
A81: 14605 | B81: 上富良野町
A82: 14613 | B82: 中富良野町
A83: 14621 | B83: 南富良野町
A84: 14639 | B84: 占冠村
A85: 14647 | B85: 和寒町
A86: 14654 | B86: 剣淵町
A87: 14688 | B87: 下川町
A88: 14696 | B88: 美深町
A89: 14704 | B89: 音威子府村
A90: 14712 | B90: 中川町
A91: 14811 | B91: 増毛町
A92: 14829 | B92: 小平町
A93: 14837 | B93: 苫前町
A94: 14845 | B94: 羽幌町
A95: 14852 | B95: 初山別村
A96: 14860 | B96: 遠別町
A97: 14878 | B97: 天塩町
A98: 15115 | B98: 猿払村
A99: 15123 | B99: 浜頓別町
A100: 15131 | B100: 中頓別町
A101: 15149 | B101: 枝幸町
A102: 15164 | B102: 豊富町
A103: 15172 | B103: 礼文町
A104: 15180 | B104: 利尻町
A105: 15198 | B105: 利尻富士町
A106: 15206 | B106: 幌延町
A107: 15438 | B107: 美幌町
A108: 15446 | B108: 津別町
A109: 15453 | B109: 斜里町
A110: 15461 | B110: 清里町
A111: 15479 | B111: 小清水町
A112: 15495 | B112: 訓子府町
A113: 15503 | B113: 置戸町
A114: 15529 | B114: 佐呂間町
A115: 15552 | B115: 遠軽町
A116: 15594 | B116: 湧別町
A117: 15602 | B117: 滝上町
A118: 15610 | B118: 興部町
A119: 15628 | B119: 西興部村
A120: 15636 | B120: 雄武町
A121: 15644 | B121: 大空町
A122: 15719 | B122: 豊浦町
A123: 15750 | B123: 壮瞥町
A124: 15784 | B124: 白老町
A125: 15818 | B125: 厚真町
A126: 15842 | B126: 洞爺湖町
A127: 15859 | B127: 安平町
A128: 15867 | B128: むかわ町
A129: 16014 | B129: 日高町
A130: 16022 | B130: 平取町
A131: 16071 | B131: 浦河町
A132: 16089 | B132: 様似町
A133: 16097 | B133: えりも町
A134: 16311 | B134: 音更町
A135: 16329 | B135: 士幌町
A136: 16337 | B136: 上士幌町
A137: 16345 | B137: 鹿追町
A138: 16352 | B138: 新得町
A139: 16360 | B139: 清水町
A140: 16378 | B140: 芽室町
A141: 16386 | B141: 中札内村
A142: 16394 | B142: 更別村
A143: 16410 | B143: 大樹町
A144: 16428 | B144: 広尾町
A145: 16436 | B145: 幕別町
A146: 16444 | B146: 池田町
A147: 16451 | B147: 豊頃町
A148: 16469 | B148: 本別町
A149: 16477 | B149: 足寄町
A150: 16485 | B150: 陸別町
A151: 16493 | B151: 浦幌町
A152: 16618 | B152: 釧路町
A153: 16626 | B153: 厚岸町
A154: 16634 | B154: 浜中町
A155: 16642 | B155: 標茶町
A156: 16659 | B156: 弟子屈町
A157: 16675 | B157: 鶴居村
A158: 16683 | B158: 白糠町
A159: 16915 | B159: 別海町
A160: 16923 | B160: 中標津町
A161: 16931 | B161: 標津町
A162: 16949 | B162: 羅臼町
A163: 16048 | B163: 日高中部広域連合（新冠町）
A164: 16105 | B164: 日高中部広域連合（新ひだか町）
A165: 12278 | B165: 空知中部広域連合（歌志内市）
A166: 14241 | B166: 空知中部広域連合（奈井江町）
A167: 14258 | B167: 空知中部広域連合（上砂川町）
A168: 14316 | B168: 空知中部広域連合（浦臼町）
A169: 14324 | B169: 空知中部広域連合（新十津川町）
A170: 14365 | B170: 空知中部広域連合（雨竜町）
A171: 13912 | B171: 後志広域連合（島牧村）
A172: 13938 | B172: 後志広域連合（黒松内町）
A173: 13946 | B173: 後志広域連合（蘭越町）
A174: 13953 | B174: 後志広域連合（ニセコ町）
A175: 13961 | B175: 後志広域連合（真狩村）
A176: 13979 | B176: 後志広域連合（留寿都村）
A177: 13987 | B177: 後志広域連合（喜茂別町）
A178: 13995 | B178: 後志広域連合（京極町）
A179: 14001 | B179: 後志広域連合（倶知安町）
A180: 14019 | B180: 後志広域連合（共和町）
A181: 14035 | B181: 後志広域連合（泊村）
A182: 14043 | B182: 後志広域連合（神恵内村）
A183: 14050 | B183: 後志広域連合（積丹町）
A184: 14068 | B184: 後志広域連合（古平町）
A185: 14076 | B185: 後志広域連合（仁木町）
A186: 14092 | B186: 後志広域連合（赤井川村）
A187: 14530 | B187: 大雪地区広域連合（東神楽町）
A188: 14589 | B188: 大雪地区広域連合（東川町）
A189: 14597 | B189: 大雪地区広域連合（美瑛町）
A190: 22012 | B190: 青森市
A191: 22020 | B191: 弘前市
A192: 22038 | B192: 八戸市
A193: 22046 | B193: 黒石市
A194: 22053 | B194: 五所川原市
A195: 22061 | B195: 十和田市
A196: 22079 | B196: 三沢市
A197: 22087 | B197: むつ市
A198: 22095 | B198: つがる市
A199: 22103 | B199: 平川市
A200: 23010 | B200: 平内町
... 1636 more rows
